[Event "Early-Titled-Tuesday-Blitz-April-23-2024"]
[Site "Chess.com"]
[Date "2024.04.23"]
[Round "6"]
[White "Daaksboy"]
[Black "whiteglovethief"]
[Result "1-0"]
[WhiteElo "2439"]
[BlackElo "2566"]
[TimeControl "180+1"]
[EndTime "9:08:47 PDT"]
[Termination "Daaksboy won by resignation"]

1. d4 {[%clk 0:03:00.9]} 1... Nf6 {[%clk 0:02:59.3]} 2. c4 {[%clk 0:02:59.5]}
2... c5 {[%clk 0:02:59.5]} 3. d5 {[%clk 0:02:59.5]} 3... b5 {[%clk 0:02:59.9]}
4. cxb5 {[%clk 0:02:59.8]} 4... a6 {[%clk 0:03:00.3]} 5. bxa6 {[%clk 0:03:00.2]}
5... g6 {[%clk 0:03:00.9]} 6. Nc3 {[%clk 0:03:00.1]} 6... Bg7 {[%clk 0:03:01.5]}
7. e4 {[%clk 0:03:00.7]} 7... O-O {[%clk 0:03:02.1]} 8. a7 {[%clk 0:03:00.5]}
8... Rxa7 {[%clk 0:03:01.4]} 9. Nf3 {[%clk 0:03:01.2]} 9... Qa5 {[%clk
0:02:57.9]} 10. Bd2 {[%clk 0:03:00]} 10... Ba6 {[%clk 0:02:56]} 11. Nb5 {[%clk
0:02:59.2]} 11... Qb6 {[%clk 0:02:53.1]} 12. Nxa7 {[%clk 0:02:59]} 12... Qxa7
{[%clk 0:02:54]} 13. Bxa6 {[%clk 0:02:57.7]} 13... Nxa6 {[%clk 0:02:52.9]} 14.
Qe2 {[%clk 0:02:55.1]} 14... Rb8 {[%clk 0:02:40.4]} 15. Bc3 {[%clk 0:02:53.7]}
15... Nb4 {[%clk 0:02:39.7]} 16. O-O {[%clk 0:02:52]} 16... Nxa2 {[%clk
0:02:38]} 17. Bxf6 {[%clk 0:02:40.9]} 17... Bxf6 {[%clk 0:02:37.3]} 18. e5
{[%clk 0:02:41.3]} 18... Bg7 {[%clk 0:02:34.8]} 19. b3 {[%clk 0:02:39.7]} 19...
Ra8 {[%clk 0:02:21.8]} 20. h3 {[%clk 0:02:23.7]} 20... d6 {[%clk 0:02:18.6]} 21.
Rfe1 {[%clk 0:02:07.5]} 21... Qa3 {[%clk 0:02:04]} 22. Qc2 {[%clk 0:01:56]}
22... dxe5 {[%clk 0:01:28.2]} 23. Nxe5 {[%clk 0:01:30.5]} 23... Qb4 {[%clk
0:00:50.9]} 24. Nd3 {[%clk 0:01:25.3]} 24... Qd4 {[%clk 0:00:28.3]} 25. Rxa2
{[%clk 0:01:18.9]} 25... Rxa2 {[%clk 0:00:29.2]} 26. Qxa2 {[%clk 0:01:19.3]}
26... Qxd3 {[%clk 0:00:30.1]} 27. Qa8+ {[%clk 0:01:13.2]} 27... Bf8 {[%clk
0:00:29.5]} 28. Rxe7 {[%clk 0:01:10.6]} 28... Kg7 {[%clk 0:00:25.3]} 29. Re8
{[%clk 0:01:07.9]} 29... Qd1+ {[%clk 0:00:18.2]} 30. Kh2 {[%clk 0:00:59]} 30...
Bd6+ {[%clk 0:00:19.1]} 31. g3 {[%clk 0:00:59.4]} 31... Qxb3 {[%clk 0:00:19]}
32. Re3 {[%clk 0:00:55]} 32... Qc2 {[%clk 0:00:16.8]} 33. Kg2 {[%clk 0:00:54.9]}
33... c4 {[%clk 0:00:15.3]} 34. Qa1+ {[%clk 0:00:53.8]} 34... Kh6 {[%clk
0:00:14]} 35. Qf6 {[%clk 0:00:51.3]} 35... Bc5 {[%clk 0:00:09.2]} 36. Rf3 {[%clk
0:00:34.7]} 36... Qe4 {[%clk 0:00:08.4]} 37. Qf4+ {[%clk 0:00:31.4]} 37... Qxf4
{[%clk 0:00:07.8]} 38. Rxf4 {[%clk 0:00:31.8]} 38... Kg5 {[%clk 0:00:05.7]} 39.
Rxc4 {[%clk 0:00:31.7]} 39... Be7 {[%clk 0:00:06.2]} 40. Rf4 {[%clk 0:00:25.2]}
40... f5 {[%clk 0:00:05.2]} 41. Ra4 {[%clk 0:00:23.6]} 41... Kf6 {[%clk
0:00:05.3]} 42. Ra6+ {[%clk 0:00:23.2]} 42... Kf7 {[%clk 0:00:04.2]} 43. d6
{[%clk 0:00:22.1]} 43... Bf6 {[%clk 0:00:04]} 44. Ra7+ {[%clk 0:00:22.4]} 44...
Ke6 {[%clk 0:00:03.9]} 45. Rxh7 {[%clk 0:00:23.1]} 45... Kxd6 {[%clk 0:00:04.8]}
46. Rh6 {[%clk 0:00:23.5]} 1-0

[Event "Early-Titled-Tuesday-Blitz-April-23-2024"]
[Site "Chess.com"]
[Date "2024.04.23"]
[Round "6"]
[White "Statham_01"]
[Black "ValentinDragnev"]
[Result "0-1"]
[WhiteElo "2570"]
[BlackElo "2742"]
[TimeControl "180+1"]
[EndTime "9:08:48 PDT"]
[Termination "ValentinDragnev won by checkmate"]

1. e4 {[%clk 0:03:00.9]} 1... d6 {[%clk 0:02:49.5]} 2. d4 {[%clk 0:03:00.7]}
2... Nf6 {[%clk 0:02:50]} 3. Nc3 {[%clk 0:03:01.1]} 3... e5 {[%clk 0:02:49.8]}
4. Nf3 {[%clk 0:03:00.6]} 4... Nbd7 {[%clk 0:02:49.6]} 5. g4 {[%clk 0:03:01]}
5... Nxg4 {[%clk 0:02:48.5]} 6. Rg1 {[%clk 0:03:01.1]} 6... Ngf6 {[%clk
0:02:47.9]} 7. Bc4 {[%clk 0:03:01.6]} 7... h6 {[%clk 0:02:45.7]} 8. Be3 {[%clk
0:02:58.6]} 8... c6 {[%clk 0:02:45.3]} 9. Qe2 {[%clk 0:02:55.1]} 9... b5 {[%clk
0:02:39.8]} 10. Bb3 {[%clk 0:02:52.2]} 10... a5 {[%clk 0:01:57.8]} 11. dxe5
{[%clk 0:02:44.9]} 11... dxe5 {[%clk 0:01:56.5]} 12. O-O-O {[%clk 0:02:42.3]}
12... Qc7 {[%clk 0:01:51.5]} 13. a4 {[%clk 0:02:16.8]} 13... b4 {[%clk
0:01:49.2]} 14. Nb1 {[%clk 0:02:11.8]} 14... g6 {[%clk 0:01:25]} 15. Qc4 {[%clk
0:02:09.9]} 15... Rh7 {[%clk 0:01:20.6]} 16. Ba2 {[%clk 0:01:34.2]} 16... Ba6
{[%clk 0:01:16]} 17. Qb3 {[%clk 0:01:34.3]} 17... Nxe4 {[%clk 0:00:48.8]} 18.
Rxd7 {[%clk 0:00:54.1]} 18... Kxd7 {[%clk 0:00:40.9]} 19. Nbd2 {[%clk
0:00:47.7]} 19... Nxd2 {[%clk 0:00:37.3]} 20. Rd1 {[%clk 0:00:48.3]} 20... Rd8
{[%clk 0:00:29.2]} 21. Nxd2 {[%clk 0:00:43.7]} 21... Kc8 {[%clk 0:00:29]} 22.
Re1 {[%clk 0:00:35.8]} 22... Kb7 {[%clk 0:00:22.4]} 23. Ne4 {[%clk 0:00:28.1]}
23... f5 {[%clk 0:00:19.8]} 24. Nf6 {[%clk 0:00:20.2]} 24... Re7 {[%clk
0:00:17.5]} 25. c3 {[%clk 0:00:15.7]} 25... Qd6 {[%clk 0:00:11.1]} 26. Bb1
{[%clk 0:00:08.5]} 26... Qxf6 {[%clk 0:00:10.5]} 27. cxb4 {[%clk 0:00:09.1]}
27... Ka8 {[%clk 0:00:09.4]} 28. b5 {[%clk 0:00:09.3]} 28... Rb7 {[%clk
0:00:07.4]} 29. Bc2 {[%clk 0:00:09.2]} 29... cxb5 {[%clk 0:00:07.1]} 30. Qc3
{[%clk 0:00:09.5]} 30... Qd6 {[%clk 0:00:06.3]} 31. Qxa5 {[%clk 0:00:08.5]}
31... Rc8 {[%clk 0:00:06]} 32. Kb1 {[%clk 0:00:07.1]} 32... b4 {[%clk
0:00:05.2]} 33. Rd1 {[%clk 0:00:07.1]} 33... Qc6 {[%clk 0:00:05.4]} 34. Bb3
{[%clk 0:00:06.7]} 34... e4 {[%clk 0:00:05.2]} 35. Bd5 {[%clk 0:00:07.1]} 35...
Qc2+ {[%clk 0:00:04]} 36. Ka2 {[%clk 0:00:07.8]} 36... b3+ {[%clk 0:00:03.8]}
37. Bxb3 {[%clk 0:00:02.5]} 37... Qxb3+ {[%clk 0:00:04.7]} 38. Ka1 {[%clk
0:00:03.1]} 38... Qxb2# {[%clk 0:00:05.3]} 0-1

[Event "Early-Titled-Tuesday-Blitz-April-23-2024"]
[Site "Chess.com"]
[Date "2024.04.23"]
[Round "6"]
[White "DanyKopy"]
[Black "CarlosjPineror"]
[Result "1-0"]
[WhiteElo "2567"]
[BlackElo "2756"]
[TimeControl "180+1"]
[EndTime "9:08:54 PDT"]
[Termination "DanyKopy won by resignation"]

1. Nf3 {[%clk 0:03:00.9]} 1... Nf6 {[%clk 0:02:59.6]} 2. c4 {[%clk 0:03:00.1]}
2... g6 {[%clk 0:02:58.3]} 3. b3 {[%clk 0:02:59.3]} 3... Bg7 {[%clk 0:02:58.2]}
4. Bb2 {[%clk 0:02:59.8]} 4... O-O {[%clk 0:02:58.9]} 5. g3 {[%clk 0:02:59.6]}
5... b6 {[%clk 0:02:58.3]} 6. Bg2 {[%clk 0:02:59.6]} 6... Bb7 {[%clk 0:02:59.2]}
7. O-O {[%clk 0:02:59.6]} 7... c5 {[%clk 0:02:58.8]} 8. Nc3 {[%clk 0:02:56.8]}
8... d6 {[%clk 0:02:58.6]} 9. d4 {[%clk 0:02:56.1]} 9... cxd4 {[%clk 0:02:57.8]}
10. Nxd4 {[%clk 0:02:54.8]} 10... Bxg2 {[%clk 0:02:58.7]} 11. Kxg2 {[%clk
0:02:55.2]} 11... Nbd7 {[%clk 0:02:56]} 12. Nc6 {[%clk 0:02:45.5]} 12... Qe8
{[%clk 0:02:52.2]} 13. Qd2 {[%clk 0:02:43.2]} 13... Nc5 {[%clk 0:02:49.2]} 14.
Nd4 {[%clk 0:02:42.9]} 14... Qc8 {[%clk 0:02:47]} 15. e3 {[%clk 0:02:37.7]}
15... Qb7+ {[%clk 0:02:47.2]} 16. Kg1 {[%clk 0:02:37.1]} 16... Rac8 {[%clk
0:02:45.2]} 17. Rac1 {[%clk 0:02:34.7]} 17... a6 {[%clk 0:02:38.9]} 18. Qe2
{[%clk 0:02:34.1]} 18... e5 {[%clk 0:02:36.9]} 19. Nc2 {[%clk 0:02:30.9]} 19...
h5 {[%clk 0:02:32.1]} 20. Nb4 {[%clk 0:02:26.3]} 20... a5 {[%clk 0:01:58.3]} 21.
Nbd5 {[%clk 0:02:24.6]} 21... Nxd5 {[%clk 0:01:59]} 22. Nxd5 {[%clk 0:02:24.5]}
22... b5 {[%clk 0:01:59.5]} 23. Rfd1 {[%clk 0:02:21.8]} 23... b4 {[%clk
0:01:56.4]} 24. Qf3 {[%clk 0:02:09.2]} 24... f5 {[%clk 0:01:52.3]} 25. Rb1
{[%clk 0:01:27.1]} 25... Ra8 {[%clk 0:01:46.6]} 26. Qe2 {[%clk 0:01:25.9]} 26...
Ra7 {[%clk 0:01:41.8]} 27. a4 {[%clk 0:01:22.7]} 27... Nxb3 {[%clk 0:01:33.3]}
28. Bxe5 {[%clk 0:01:22.4]} 28... dxe5 {[%clk 0:01:29.7]} 29. Rxb3 {[%clk
0:01:22.2]} 29... e4 {[%clk 0:01:30.5]} 30. c5 {[%clk 0:01:19.3]} 30... Rc8
{[%clk 0:01:26.4]} 31. Qc4 {[%clk 0:01:13.8]} 31... Kh7 {[%clk 0:01:26.6]} 32.
Rbb1 {[%clk 0:01:04]} 32... Qa6 {[%clk 0:01:23.2]} 33. Qc2 {[%clk 0:00:39.5]}
33... Qe6 {[%clk 0:01:01.8]} 34. Rbc1 {[%clk 0:00:37.3]} 34... Ra6 {[%clk
0:00:58.3]} 35. Nf4 {[%clk 0:00:30.1]} 35... Qf7 {[%clk 0:00:57.9]} 36. h4
{[%clk 0:00:25.8]} 36... Rac6 {[%clk 0:00:57.6]} 37. Rd5 {[%clk 0:00:19.6]}
37... Bc3 {[%clk 0:00:55.5]} 38. Rcd1 {[%clk 0:00:17.6]} 38... R8c7 {[%clk
0:00:55.3]} 39. Qb3 {[%clk 0:00:16.6]} 39... Qe7 {[%clk 0:00:33.9]} 40. Rd6
{[%clk 0:00:12.3]} 40... Qe8 {[%clk 0:00:11.4]} 41. Nxg6 {[%clk 0:00:10.8]}
41... Bf6 {[%clk 0:00:06.9]} 42. Nf4 {[%clk 0:00:10.2]} 42... Be5 {[%clk
0:00:03.7]} 43. Ne6 {[%clk 0:00:09.4]} 43... Bxd6 {[%clk 0:00:03]} 44. cxd6
{[%clk 0:00:08]} 44... Rf7 {[%clk 0:00:02.2]} 45. Ng5+ {[%clk 0:00:07.7]} 45...
Kg6 {[%clk 0:00:03.1]} 46. Nxf7 {[%clk 0:00:07.3]} 46... Qxf7 {[%clk 0:00:03.2]}
47. Qxf7+ {[%clk 0:00:08.2]} 47... Kxf7 {[%clk 0:00:04]} 48. d7 {[%clk 0:00:09]}
1-0

[Event "Early-Titled-Tuesday-Blitz-April-23-2024"]
[Site "Chess.com"]
[Date "2024.04.23"]
[Round "6"]
[White "maximnovik"]
[Black "The_Machine04"]
[Result "0-1"]
[WhiteElo "2573"]
[BlackElo "2756"]
[TimeControl "180+1"]
[EndTime "9:08:55 PDT"]
[Termination "The_Machine04 won by resignation"]

1. e4 {[%clk 0:03:00.9]} 1... d6 {[%clk 0:03:00.1]} 2. d4 {[%clk 0:02:59.7]}
2... Nf6 {[%clk 0:03:00.5]} 3. Bd3 {[%clk 0:02:59.7]} 3... e5 {[%clk 0:03:00.5]}
4. Nf3 {[%clk 0:02:55.7]} 4... Nbd7 {[%clk 0:02:59.5]} 5. c3 {[%clk 0:02:55.4]}
5... d5 {[%clk 0:02:59.5]} 6. dxe5 {[%clk 0:02:51.6]} 6... dxe4 {[%clk
0:02:59.3]} 7. exf6 {[%clk 0:02:49.9]} 7... exf3 {[%clk 0:02:59.6]} 8. fxg7
{[%clk 0:02:25.9]} 8... Bxg7 {[%clk 0:03:00.5]} 9. O-O {[%clk 0:02:16.6]} 9...
O-O {[%clk 0:02:49.3]} 10. Bc2 {[%clk 0:01:54]} 10... fxg2 {[%clk 0:02:34.5]}
11. Re1 {[%clk 0:01:53.9]} 11... Qh4 {[%clk 0:02:14.9]} 12. Re4 {[%clk
0:01:48.5]} 12... Qh3 {[%clk 0:02:02.5]} 13. Bg5 {[%clk 0:01:25.8]} 13... h6
{[%clk 0:01:26.4]} 14. Rh4 {[%clk 0:01:07.8]} 14... Qe6 {[%clk 0:01:24.8]} 15.
Qd3 {[%clk 0:01:00.5]} 15... Qg6 {[%clk 0:00:48.2]} 16. Qxg6 {[%clk 0:00:52.3]}
16... fxg6 {[%clk 0:00:49.1]} 17. Bxh6 {[%clk 0:00:52.6]} 17... Ne5 {[%clk
0:00:47.9]} 18. Bb3+ {[%clk 0:00:46.5]} 18... Nf7 {[%clk 0:00:32.9]} 19. Bxg7
{[%clk 0:00:34.2]} 19... Kxg7 {[%clk 0:00:33.8]} 20. Kxg2 {[%clk 0:00:27.3]}
20... Bd7 {[%clk 0:00:28.1]} 21. Nd2 {[%clk 0:00:27.2]} 21... Bc6+ {[%clk
0:00:27.6]} 22. Kg1 {[%clk 0:00:27.3]} 22... Rad8 {[%clk 0:00:20.5]} 23. Rd4
{[%clk 0:00:25.2]} 23... Ng5 {[%clk 0:00:17.9]} 24. h4 {[%clk 0:00:20.1]} 24...
Rxd4 {[%clk 0:00:16.3]} 25. cxd4 {[%clk 0:00:19.1]} 25... Nh3+ {[%clk
0:00:16.5]} 26. Kh2 {[%clk 0:00:19.3]} 26... Rxf2+ {[%clk 0:00:15.5]} 27. Kxh3
{[%clk 0:00:19.4]} 27... Rxd2 {[%clk 0:00:16.4]} 28. d5 {[%clk 0:00:19.8]} 28...
Bxd5 {[%clk 0:00:16.2]} 29. Bxd5 {[%clk 0:00:19.5]} 29... Rxd5 {[%clk
0:00:17.1]} 30. Rc1 {[%clk 0:00:19.1]} 30... c6 {[%clk 0:00:17.3]} 31. Re1
{[%clk 0:00:19.6]} 31... Kf6 {[%clk 0:00:15.7]} 32. Rf1+ {[%clk 0:00:20]} 32...
Rf5 {[%clk 0:00:16.1]} 33. Rd1 {[%clk 0:00:20]} 33... Rf2 {[%clk 0:00:16.2]} 34.
b3 {[%clk 0:00:17.6]} 34... Rxa2 {[%clk 0:00:15.5]} 35. Rd7 {[%clk 0:00:18.1]}
35... b6 {[%clk 0:00:12.6]} 36. Rd6+ {[%clk 0:00:18.2]} 36... Kf5 {[%clk
0:00:13.2]} 37. Rxc6 {[%clk 0:00:18.6]} 37... Ra3 {[%clk 0:00:10.1]} 38. Rc3
{[%clk 0:00:18.7]} 38... a5 {[%clk 0:00:10.2]} 39. Rf3+ {[%clk 0:00:17.1]} 39...
Ke4 {[%clk 0:00:09.5]} 40. Kg4 {[%clk 0:00:17.6]} 40... b5 {[%clk 0:00:04.3]}
41. Rf4+ {[%clk 0:00:17.2]} 41... Kd5 {[%clk 0:00:04.2]} 42. b4 {[%clk
0:00:15.9]} 42... a4 {[%clk 0:00:03.9]} 43. Rf6 {[%clk 0:00:15.3]} 43... Ra1
{[%clk 0:00:02.5]} 44. Rxg6 {[%clk 0:00:14.9]} 44... Rg1+ {[%clk 0:00:02.5]} 45.
Kf5 {[%clk 0:00:15.3]} 45... Rxg6 {[%clk 0:00:03.3]} 46. Kxg6 {[%clk 0:00:15.8]}
46... a3 {[%clk 0:00:04.2]} 47. h5 {[%clk 0:00:16.3]} 47... a2 {[%clk
0:00:05.1]} 48. h6 {[%clk 0:00:17]} 48... a1=Q {[%clk 0:00:06]} 0-1

[Event "Early-Titled-Tuesday-Blitz-April-23-2024"]
[Site "Chess.com"]
[Date "2024.04.23"]
[Round "6"]
[White "ljuks68"]
[Black "martinmena"]
[Result "1-0"]
[WhiteElo "2378"]
[BlackElo "2203"]
[TimeControl "180+1"]
[EndTime "9:09:00 PDT"]
[Termination "ljuks68 won by checkmate"]

1. e4 {[%clk 0:02:52.5]} 1... c6 {[%clk 0:02:59.8]} 2. d4 {[%clk 0:02:52.6]}
2... d5 {[%clk 0:03:00.7]} 3. e5 {[%clk 0:02:53.1]} 3... Bf5 {[%clk 0:02:59.5]}
4. Nd2 {[%clk 0:02:53.4]} 4... e6 {[%clk 0:02:58.1]} 5. Nb3 {[%clk 0:02:54]}
5... Ne7 {[%clk 0:02:56.1]} 6. Nf3 {[%clk 0:02:54.4]} 6... Nd7 {[%clk
0:02:43.3]} 7. Be2 {[%clk 0:02:54.2]} 7... Qc7 {[%clk 0:02:42.1]} 8. O-O {[%clk
0:02:54.7]} 8... a6 {[%clk 0:02:31.6]} 9. a4 {[%clk 0:02:49.6]} 9... c5 {[%clk
0:02:29.9]} 10. dxc5 {[%clk 0:02:48.5]} 10... Nxc5 {[%clk 0:02:30.2]} 11. Nxc5
{[%clk 0:02:49.1]} 11... Qc6 {[%clk 0:02:30.7]} 12. Nd3 {[%clk 0:02:46.8]} 12...
Rc8 {[%clk 0:02:17.7]} 13. c3 {[%clk 0:02:38.6]} 13... Qc7 {[%clk 0:02:11.8]}
14. Nd4 {[%clk 0:02:35.3]} 14... Bxd3 {[%clk 0:02:10.4]} 15. Bxd3 {[%clk
0:02:33.7]} 15... Qxe5 {[%clk 0:02:10.3]} 16. f4 {[%clk 0:02:28.9]} 16... Qd6
{[%clk 0:02:09.7]} 17. Kh1 {[%clk 0:02:25.5]} 17... g6 {[%clk 0:02:06.5]} 18.
Be3 {[%clk 0:02:13.6]} 18... Bg7 {[%clk 0:02:02.7]} 19. Qd2 {[%clk 0:02:10.1]}
19... O-O {[%clk 0:01:47.3]} 20. a5 {[%clk 0:02:08.1]} 20... Rfd8 {[%clk
0:00:52.5]} 21. h3 {[%clk 0:01:57.8]} 21... f5 {[%clk 0:00:41.3]} 22. Nb3 {[%clk
0:01:51.6]} 22... Kf7 {[%clk 0:00:27.4]} 23. Bd4 {[%clk 0:01:42.5]} 23... Bh6
{[%clk 0:00:26.2]} 24. Rae1 {[%clk 0:01:36.6]} 24... Nc6 {[%clk 0:00:20.6]} 25.
Bb6 {[%clk 0:01:36.2]} 25... Re8 {[%clk 0:00:19.4]} 26. Nc5 {[%clk 0:01:36.2]}
26... Nb8 {[%clk 0:00:13.8]} 27. b4 {[%clk 0:01:17.4]} 27... Nd7 {[%clk
0:00:13.8]} 28. Nxd7 {[%clk 0:01:05.7]} 28... Qxd7 {[%clk 0:00:14.7]} 29. Bd4
{[%clk 0:01:03.7]} 29... Qc7 {[%clk 0:00:11.4]} 30. Be5 {[%clk 0:01:00.3]} 30...
Qc6 {[%clk 0:00:09.8]} 31. Re3 {[%clk 0:01:00.3]} 31... b5 {[%clk 0:00:09.5]}
32. axb6 {[%clk 0:00:57.3]} 32... Qxb6 {[%clk 0:00:09.8]} 33. Ra1 {[%clk
0:00:49.6]} 33... Ra8 {[%clk 0:00:08.6]} 34. Rae1 {[%clk 0:00:42.6]} 34... a5
{[%clk 0:00:08]} 35. b5 {[%clk 0:00:42.4]} 35... a4 {[%clk 0:00:07.8]} 36. Bd4
{[%clk 0:00:42.7]} 36... Qb7 {[%clk 0:00:06.7]} 37. Qf2 {[%clk 0:00:40]} 37...
a3 {[%clk 0:00:05.5]} 38. Qh4 {[%clk 0:00:39.2]} 38... Bg7 {[%clk 0:00:03.1]}
39. Qxh7 {[%clk 0:00:38.9]} 39... Kf8 {[%clk 0:00:03.6]} 40. Qxg6 {[%clk
0:00:31.8]} 40... Bxd4 {[%clk 0:00:02.4]} 41. cxd4 {[%clk 0:00:31.9]} 41... a2
{[%clk 0:00:02.6]} 42. Ra1 {[%clk 0:00:32]} 42... Qf7 {[%clk 0:00:02.3]} 43.
Qxf7+ {[%clk 0:00:30.7]} 43... Kxf7 {[%clk 0:00:03.2]} 44. Re2 {[%clk
0:00:31.1]} 44... Rec8 {[%clk 0:00:03.3]} 45. Rexa2 {[%clk 0:00:30.5]} 45...
Rc1+ {[%clk 0:00:02]} 46. Rxc1 {[%clk 0:00:28.9]} 46... Rxa2 {[%clk 0:00:02.4]}
47. b6 {[%clk 0:00:28.2]} 47... Rb2 {[%clk 0:00:02.8]} 48. Rb1 {[%clk
0:00:28.3]} 48... Rd2 {[%clk 0:00:01.7]} 49. b7 {[%clk 0:00:27.9]} 49... Rxd3
{[%clk 0:00:02.4]} 50. b8=Q {[%clk 0:00:28.2]} 50... Rxd4 {[%clk 0:00:03.1]} 51.
Qe5 {[%clk 0:00:27.8]} 51... Re4 {[%clk 0:00:03.1]} 52. Rb7+ {[%clk 0:00:27.8]}
52... Kg6 {[%clk 0:00:02.1]} 53. Rg7+ {[%clk 0:00:27.1]} 53... Kh5 {[%clk
0:00:02.7]} 54. Qf6 {[%clk 0:00:27.2]} 54... Re1+ {[%clk 0:00:01.9]} 55. Kh2
{[%clk 0:00:27.6]} 55... Rh1+ {[%clk 0:00:02]} 56. Kxh1 {[%clk 0:00:28]} 56...
d4 {[%clk 0:00:01.8]} 57. Qg5# {[%clk 0:00:28.3]} 1-0

[Event "Early-Titled-Tuesday-Blitz-April-23-2024"]
[Site "Chess.com"]
[Date "2024.04.23"]
[Round "6"]
[White "lluiss"]
[Black "MIss_MIaMI"]
[Result "0-1"]
[WhiteElo "2136"]
[BlackElo "2341"]
[TimeControl "180+1"]
[EndTime "9:09:00 PDT"]
[Termination "MIss_MIaMI won on time"]

1. Nf3 {[%clk 0:03:00.9]} 1... c5 {[%clk 0:02:59.8]} 2. c4 {[%clk 0:02:59.4]}
2... e6 {[%clk 0:03:00.3]} 3. Nc3 {[%clk 0:02:59.5]} 3... Nf6 {[%clk 0:03:00.8]}
4. d4 {[%clk 0:02:58.8]} 4... cxd4 {[%clk 0:03:00.5]} 5. Nxd4 {[%clk 0:02:59.7]}
5... a6 {[%clk 0:03:01.1]} 6. g3 {[%clk 0:02:58.9]} 6... Qc7 {[%clk 0:03:01]} 7.
Bg5 {[%clk 0:02:19]} 7... Be7 {[%clk 0:02:49]} 8. Rc1 {[%clk 0:02:15.5]} 8...
O-O {[%clk 0:02:47.9]} 9. b3 {[%clk 0:02:11]} 9... Nc6 {[%clk 0:02:41.7]} 10.
Bg2 {[%clk 0:02:08.5]} 10... h6 {[%clk 0:02:39.1]} 11. Bf4 {[%clk 0:02:02]}
11... Qa5 {[%clk 0:02:35.4]} 12. O-O {[%clk 0:01:39.3]} 12... e5 {[%clk
0:02:19.4]} 13. Nxc6 {[%clk 0:01:38.8]} 13... dxc6 {[%clk 0:02:18.3]} 14. Bd2
{[%clk 0:01:26.4]} 14... Qc7 {[%clk 0:02:11.7]} 15. Qc2 {[%clk 0:01:17.1]} 15...
Rd8 {[%clk 0:02:08.7]} 16. Rfd1 {[%clk 0:01:15.4]} 16... Ba3 {[%clk 0:02:07.8]}
17. Rb1 {[%clk 0:01:14.3]} 17... a5 {[%clk 0:02:03.7]} 18. Be3 {[%clk
0:01:08.7]} 18... Bg4 {[%clk 0:01:38.1]} 19. Na4 {[%clk 0:01:02.8]} 19... Rxd1+
{[%clk 0:01:27]} 20. Rxd1 {[%clk 0:01:02.1]} 20... Bh5 {[%clk 0:01:27.2]} 21.
Bb6 {[%clk 0:00:59.4]} 21... Qe7 {[%clk 0:01:26.4]} 22. Qd2 {[%clk 0:00:58.1]}
22... Bb4 {[%clk 0:01:25.1]} 23. Qe3 {[%clk 0:00:48.4]} 23... Nd7 {[%clk
0:00:59.3]} 24. Bc7 {[%clk 0:00:41.7]} 24... Rc8 {[%clk 0:00:56]} 25. Bb6 {[%clk
0:00:27.2]} 25... Nxb6 {[%clk 0:00:44.8]} 26. Nxb6 {[%clk 0:00:26.6]} 26... Rd8
{[%clk 0:00:37.1]} 27. Rxd8+ {[%clk 0:00:23.2]} 27... Qxd8 {[%clk 0:00:38]} 28.
h3 {[%clk 0:00:20.6]} 28... Bxe2 {[%clk 0:00:30.1]} 29. Qxe2 {[%clk 0:00:17.1]}
29... Qxb6 {[%clk 0:00:30.3]} 30. Be4 {[%clk 0:00:13.8]} 30... Bc5 {[%clk
0:00:29.8]} 31. Kg2 {[%clk 0:00:13.6]} 31... Bd4 {[%clk 0:00:27]} 32. g4 {[%clk
0:00:13.4]} 32... g6 {[%clk 0:00:27.2]} 33. Qf3 {[%clk 0:00:13]} 33... Kg7
{[%clk 0:00:25.8]} 34. a4 {[%clk 0:00:13]} 34... Qc5 {[%clk 0:00:26.2]} 35. h4
{[%clk 0:00:13.1]} 35... Qe7 {[%clk 0:00:26.6]} 36. h5 {[%clk 0:00:12.8]} 36...
Qg5 {[%clk 0:00:24.5]} 37. hxg6 {[%clk 0:00:12.1]} 37... fxg6 {[%clk 0:00:25.4]}
38. Bd3 {[%clk 0:00:07.2]} 38... h5 {[%clk 0:00:22]} 39. Kh3 {[%clk 0:00:05.8]}
39... Qxg4+ {[%clk 0:00:16.3]} 40. Qxg4 {[%clk 0:00:05.9]} 40... hxg4+ {[%clk
0:00:17.2]} 41. Kxg4 {[%clk 0:00:06.1]} 41... Bxf2 {[%clk 0:00:17.9]} 42. Be4
{[%clk 0:00:05.2]} 42... Be3 {[%clk 0:00:15.9]} 43. Bd3 {[%clk 0:00:04.9]} 43...
Kf6 {[%clk 0:00:16]} 44. Be4 {[%clk 0:00:05.2]} 44... Bf4 {[%clk 0:00:15.4]} 45.
Bd3 {[%clk 0:00:05.3]} 45... g5 {[%clk 0:00:14.8]} 46. Be4 {[%clk 0:00:05.5]}
46... Ke6 {[%clk 0:00:15.5]} 47. Bd3 {[%clk 0:00:04.4]} 47... Kd6 {[%clk
0:00:16]} 48. Kf5 {[%clk 0:00:02.4]} 48... Kc5 {[%clk 0:00:15.9]} 49. Ke6 {[%clk
0:00:01.6]} 49... g4 {[%clk 0:00:15.3]} 50. Be2 {[%clk 0:00:01.3]} 50... g3
{[%clk 0:00:15.3]} 0-1